{"text_format":"1","workbook":"xlsx","n_sheets":8,"sheets":["1) Identificación de la empresa","2) Indicadores económicos","3)Indicadores sociales int.","4)Indicadores sociales ext.","5) Indicadores de recursos hum.","6) Indicadores de políticas","7) Indicadores ambientales","8) Otras informaciones"],"not_rendered":{"charts":0,"images":1,"macros":1,"external_links":0,"defined_names":0,"comments":8,"pivot_tables":0},"unopened":[],"bounds":{"document_bytes":16777216,"sheet_cells":100000,"rows_first":2000,"rows_last":500,"rows_between":2000,"halvings":0,"cell_chars":16384,"cell_head_chars":4096},"cells_cut":0,"cells_raw":0,"read":"whole","date_system":"1900"}

{"sheet":"1) Identificación de la empresa","index":0,"n_rows":10,"n_cols":24,"rows_kept":10,"cut":false,"hidden":false,"merged":[[0,2,0,16],[9,2,9,3],[9,4,9,23],[2,2,2,4],[3,2,3,3],[3,4,3,23],[5,2,5,3],[2,5,2,13],[2,22,2,23],[2,14,2,21],[1,2,1,23],[8,4,8,23],[4,4,4,23],[5,4,5,23],[6,4,6,23],[7,4,7,23]]}
[null,null,"BALANCE SOCIAL Y AMBIENTAL",null,null,null,null,null,null,null,null,null,null,null,null,null,null,null,null,null,null,null,null,"EJERCICIO: ………...…….…."]
[null,null,"1)  IDENTIFICACIÓN DE LA EMPRESA"]
[null,null,"Nombre de la empresa:",null,null,"Mi empresa",null,null,null,null,null,null,null,null,"Espacio para insertar su logotipo:"]
[null,null,"Sector económico: ",null,"[  ] comercio   [  ] industria     [  ] servicios     [  ] agronegocio"]
[null,null,"Actividad:"]
[null,null,"Sede:                 "]
[null,null,"Misión:"]
[null,null,"Visión:"]
[null,null,"Valores:"]
[null,null,"Breve reseña histórica:\n"]

{"sheet":"2) Indicadores económicos","index":1,"n_rows":12,"n_cols":21,"rows_kept":12,"cut":false,"hidden":false,"merged":[[0,2,1,3],[0,4,0,13],[0,14,0,23],[1,4,1,8],[1,9,1,13],[1,14,1,19],[1,20,1,23],[3,2,3,3],[3,4,3,8],[3,9,3,13],[3,14,3,19],[3,20,3,23],[2,2,2,3],[2,4,2,8],[2,9,2,13],[2,14,2,19],[2,20,2,23],[5,2,5,3],[5,4,5,8],[5,9,5,13],[5,14,5,19],[5,20,5,23],[4,2,4,3],[4,4,4,8],[4,9,4,13],[4,14,4,19],[4,20,4,23],[7,2,7,3],[7,4,7,8],[7,9,7,13],[7,14,7,19],[7,20,7,23],[6,2,6,3],[6,4,6,8],[6,9,6,13],[6,14,6,19],[6,20,6,23],[9,2,9,3],[9,4,9,8],[9,9,9,13],[9,14,9,19],[9,20,9,23],[8,2,8,3],[8,4,8,8],[8,9,8,13],[8,14,8,19],[8,20,8,23],[11,2,11,3],[11,4,11,8],[11,9,11,13],[11,14,11,19],[11,20,11,23],[10,2,10,3],[10,4,10,8],[10,9,10,13],[10,14,10,19],[10,20,10,23]]}
[null,null,"2)  INDICADORES ECONÓMICOS",null,"Ejercicio anterior",null,null,null,null,null,null,null,null,null,"Ejercicio actual"]
[null,null,null,null,"Valores en",null,null,null,null,"% sobre la FB",null,null,null,null,"Valores en ",null,null,null,null,null,"% sobre la FB"]
[null,null,"Facturación bruta (FB)",null,null,null,null,null,null,1,null,null,null,null,null,null,null,null,null,null,1]
[null,null,"MENOS Insumos adquiridos a terceros",null,null,null,null,null,null,{"$f":"IF(AND(ISNUMBER(E$3),GESTEP(E$3,1)),E4*J$3/E$3,0)","v":0},null,null,null,null,null,null,null,null,null,null,{"$f":"IF(AND(ISNUMBER(O$3),GESTEP(O$3,1)),O4*U$3/O$3,0)","v":0}]
[null,null,"TOTAL VALOR AGREGADO GENERADO",null,{"$f":"E3-E4","v":0},null,null,null,null,{"$f":"IF(AND(ISNUMBER(E$3),GESTEP(E$3,1)),E5*J$3/E$3,0)","v":0},null,null,null,null,{"$f":"O3-O4","v":0},null,null,null,null,null,{"$f":"IF(AND(ISNUMBER(O$3),GESTEP(O$3,1)),O5*U$3/O$3,0)","v":0}]
[null,null,"Tributos al Gobierno",null,null,null,null,null,null,{"$f":"IF(AND(ISNUMBER(E$3),GESTEP(E$3,1)),E6*J$3/E$3,0)","v":0},null,null,null,null,null,null,null,null,null,null,0]
[null,null,"Recursos humanos",null,null,null,null,null,null,0,null,null,null,null,null,null,null,null,null,null,0]
[null,null,"Inversión social y ambiental",null,null,null,null,null,null,0,null,null,null,null,null,null,null,null,null,null,0]
[null,null,"Retribución al capital de terceros",null,null,null,null,null,null,0,null,null,null,null,null,null,null,null,null,null,0]
[null,null,"Retribución al capital propio",null,null,null,null,null,null,0,null,null,null,null,null,null,null,null,null,null,0]
[null,null,"Resultados no distribuidos",null,null,null,null,null,null,0,null,null,null,null,null,null,null,null,null,null,0]
[null,null,"TOTAL VALOR AGREGADO DISTRIBUIDO",null,{"$f":"(E3-E4)+SUM(E5:I11)","v":0},null,null,null,null,{"$f":"SUM(J4:N11)","v":0},null,null,null,null,{"$f":"(O3-O4)+SUM(O5:T11)","v":0},null,null,null,null,null,{"$f":"SUM(U4:X11)","v":0}]

{"sheet":"3)Indicadores sociales int.","index":2,"n_rows":11,"n_cols":22,"rows_kept":11,"cut":false,"hidden":false,"merged":[[0,2,1,3],[0,4,0,10],[0,11,0,17],[0,18,0,23],[1,4,1,6],[1,7,1,10],[1,11,1,14],[1,15,1,17],[1,18,1,20],[1,21,1,23],[2,21,2,23],[3,2,3,3],[3,4,3,6],[3,7,3,10],[3,11,3,14],[3,15,3,17],[3,18,3,20],[3,21,3,23],[2,2,2,3],[2,4,2,6],[2,7,2,10],[2,11,2,14],[2,15,2,17],[2,18,2,20],[4,21,4,23],[5,2,5,3],[5,4,5,6],[5,7,5,10],[5,11,5,14],[5,15,5,17],[5,18,5,20],[5,21,5,23],[4,2,4,3],[4,4,4,6],[4,7,4,10],[4,11,4,14],[4,15,4,17],[4,18,4,20],[6,21,6,23],[7,2,7,3],[7,4,7,6],[7,7,7,10],[7,11,7,14],[7,15,7,17],[7,18,7,20],[7,21,7,23],[6,2,6,3],[6,4,6,6],[6,7,6,10],[6,11,6,14],[6,15,6,17],[6,18,6,20],[8,21,8,23],[9,2,9,3],[9,4,9,6],[9,7,9,10],[9,11,9,14],[9,15,9,17],[9,18,9,20],[9,21,9,23],[8,2,8,3],[8,4,8,6],[8,7,8,10],[8,11,8,14],[8,15,8,17],[8,18,8,20],[10,21,10,23],[10,2,10,3],[10,4,10,6],[10,7,10,10],[10,11,10,14],[10,15,10,17],[10,18,10,20]]}
[null,null,"3)  INDICADORES SOCIALES  INTERNOS\n(inversiones sociales para empleados)",null,"Ejercicio anterior",null,null,null,null,null,null,"Ejercicio actual",null,null,null,null,null,null,"Mejora proyectada"]
[null,null,null,null,"Valores en ",null,null,"% sobre la FB",null,null,null,"Valores en",null,null,null,"% sobre la FB",null,null,"Valores en",null,null,"% sobre la FB"]
[null,null,"Alimentación",null,null,null,null,{"$f":"IF(AND(ISNUMBER(E3),GESTEP(E3,1)),E3*'2) Indicadores económicos'!J$3/'2) Indicadores económicos'!E$3,0)","v":0},null,null,null,null,null,null,null,{"$f":"IF(AND(ISNUMBER(L3),GESTEP(L3,1)),L3*'2) Indicadores económicos'!U$3/'2) Indicadores económicos'!O$3,0)","v":0},null,null,null,null,null,{"$f":"IF(AND(ISNUMBER(S3),GESTEP(S3,1)),S3*'2) Indicadores económicos'!U$3/'2) Indicadores económicos'!O$3,0)","v":0}]
[null,null,"Salud",null,null,null,null,{"$f":"IF(AND(ISNUMBER(E4),GESTEP(E4,1)),E4*'2) Indicadores económicos'!J$3/'2) Indicadores económicos'!E$3,0)","v":0},null,null,null,null,null,null,null,{"$f":"IF(AND(ISNUMBER(L4),GESTEP(L4,1)),L4*'2) Indicadores económicos'!U$3/'2) Indicadores económicos'!O$3,0)","v":0},null,null,null,null,null,{"$f":"IF(AND(ISNUMBER(S4),GESTEP(S4,1)),S4*'2) Indicadores económicos'!U$3/'2) Indicadores económicos'!O$3,0)","v":0}]
[null,null,"Seguridad en el trabajo",null,null,null,null,{"$f":"IF(AND(ISNUMBER(E5),GESTEP(E5,1)),E5*'2) Indicadores económicos'!J$3/'2) Indicadores económicos'!E$3,0)","v":0},null,null,null,null,null,null,null,{"$f":"IF(AND(ISNUMBER(L5),GESTEP(L5,1)),L5*'2) Indicadores económicos'!U$3/'2) Indicadores económicos'!O$3,0)","v":0},null,null,null,null,null,{"$f":"IF(AND(ISNUMBER(S5),GESTEP(S5,1)),S5*'2) Indicadores económicos'!U$3/'2) Indicadores económicos'!O$3,0)","v":0}]
[null,null,"Educación/alfabetización, enseñanza elemental, media o superior",null,null,null,null,{"$f":"IF(AND(ISNUMBER(E6),GESTEP(E6,1)),E6*'2) Indicadores económicos'!J$3/'2) Indicadores económicos'!E$3,0)","v":0},null,null,null,null,null,null,null,{"$f":"IF(AND(ISNUMBER(L6),GESTEP(L6,1)),L6*'2) Indicadores económicos'!U$3/'2) Indicadores económicos'!O$3,0)","v":0},null,null,null,null,null,{"$f":"IF(AND(ISNUMBER(S6),GESTEP(S6,1)),S6*'2) Indicadores económicos'!U$3/'2) Indicadores económicos'!O$3,0)","v":0}]
[null,null,"Cultura",null,null,null,null,{"$f":"IF(AND(ISNUMBER(E7),GESTEP(E7,1)),E7*'2) Indicadores económicos'!J$3/'2) Indicadores económicos'!E$3,0)","v":0},null,null,null,null,null,null,null,{"$f":"IF(AND(ISNUMBER(L7),GESTEP(L7,1)),L7*'2) Indicadores económicos'!U$3/'2) Indicadores económicos'!O$3,0)","v":0},null,null,null,null,null,{"$f":"IF(AND(ISNUMBER(S7),GESTEP(S7,1)),S7*'2) Indicadores económicos'!U$3/'2) Indicadores económicos'!O$3,0)","v":0}]
[null,null,"Capacitación y desarrollo profesional",null,null,null,null,{"$f":"IF(AND(ISNUMBER(E8),GESTEP(E8,1)),E8*'2) Indicadores económicos'!J$3/'2) Indicadores económicos'!E$3,0)","v":0},null,null,null,null,null,null,null,{"$f":"IF(AND(ISNUMBER(L8),GESTEP(L8,1)),L8*'2) Indicadores económicos'!U$3/'2) Indicadores económicos'!O$3,0)","v":0},null,null,null,null,null,{"$f":"IF(AND(ISNUMBER(S8),GESTEP(S8,1)),S8*'2) Indicadores económicos'!U$3/'2) Indicadores económicos'!O$3,0)","v":0}]
[null,null,"Guarderías infantiles internas o externas",null,null,null,null,{"$f":"IF(AND(ISNUMBER(E9),GESTEP(E9,1)),E9*'2) Indicadores económicos'!J$3/'2) Indicadores económicos'!E$3,0)","v":0},null,null,null,null,null,null,null,{"$f":"IF(AND(ISNUMBER(L9),GESTEP(L9,1)),L9*'2) Indicadores económicos'!U$3/'2) Indicadores económicos'!O$3,0)","v":0},null,null,null,null,null,{"$f":"IF(AND(ISNUMBER(S9),GESTEP(S9,1)),S9*'2) Indicadores económicos'!U$3/'2) Indicadores económicos'!O$3,0)","v":0}]
[null,null,"Otros",null,null,null,null,{"$f":"IF(AND(ISNUMBER(E10),GESTEP(E10,1)),E10*'2) Indicadores económicos'!J$3/'2) Indicadores económicos'!E$3,0)","v":0},null,null,null,null,null,null,null,{"$f":"IF(AND(ISNUMBER(L10),GESTEP(L10,1)),L10*'2) Indicadores económicos'!U$3/'2) Indicadores económicos'!O$3,0)","v":0},null,null,null,null,null,{"$f":"IF(AND(ISNUMBER(S10),GESTEP(S10,1)),S10*'2) Indicadores económicos'!U$3/'2) Indicadores económicos'!O$3,0)","v":0}]
[null,null,"TOTAL DE LAS INVERSIONES SOCIALES INTERNAS",null,{"$f":"SUM(E3:G10)","v":0},null,null,{"$f":"SUM(H3:K10)","v":0},null,null,null,{"$f":"SUM(L3:O10)","v":0},null,null,null,{"$f":"SUM(P3:R10)","v":0},null,null,{"$f":"SUM(S3:U10)","v":0},null,null,{"$f":"SUM(V3:X10)","v":0}]

{"sheet":"4)Indicadores sociales ext.","index":3,"n_rows":13,"n_cols":22,"rows_kept":13,"cut":false,"hidden":false,"merged":[[0,2,1,3],[0,4,0,10],[0,11,0,17],[0,18,0,23],[1,4,1,6],[1,7,1,10],[1,11,1,14],[1,15,1,17],[1,18,1,20],[1,21,1,23],[2,21,2,23],[3,4,3,10],[3,11,3,17],[3,18,3,23],[4,2,5,3],[4,4,4,6],[4,7,4,10],[4,11,4,14],[4,15,4,17],[4,18,4,20],[2,2,3,3],[2,4,2,6],[2,7,2,10],[2,11,2,14],[2,15,2,17],[2,18,2,20],[4,21,4,23],[5,4,5,10],[5,11,5,17],[5,18,5,23],[6,2,7,3],[6,4,6,6],[6,7,6,10],[6,11,6,14],[6,15,6,17],[6,18,6,20],[6,21,6,23],[7,4,7,10],[7,11,7,17],[7,18,7,23],[8,2,9,3],[8,4,8,6],[8,7,8,10],[8,11,8,14],[8,15,8,17],[8,18,8,20],[8,21,8,23],[9,4,9,10],[9,11,9,17],[9,18,9,23],[10,2,11,3],[10,4,10,6],[10,7,10,10],[10,11,10,14],[10,15,10,17],[12,2,12,3],[12,4,12,6],[12,7,12,10],[12,11,12,14],[12,15,12,17],[12,21,12,23],[10,21,10,23],[11,4,11,10],[11,11,11,17],[11,18,11,23],[12,18,12,20],[10,18,10,20]]}
[null,null,"4)  INDICADORES SOCIALES EXTERNOS\n(inversiones enla comunidad)",null,"Ejercicio anterior",null,null,null,null,null,null,"Ejercicio actual",null,null,null,null,null,null,"Mejora proyectada"]
[null,null,null,null,"Valores en ",null,null,"% sobre la FB",null,null,null,"Valores en",null,null,null,"% sobre la FB",null,null,"Valores en ",null,null,"% sobre la FB"]
[null,null,"Gastos en filantropía / donaciones (financieras, productos y/o servicios) / ayudas humanitarias",null,null,null,null,{"$f":"IF(AND(ISNUMBER(E$3),GESTEP(E$3,1)),E3*'2) Indicadores económicos'!J$3/'2) Indicadores económicos'!E$3,0)","v":0},null,null,null,null,null,null,null,{"$f":"IF(AND(ISNUMBER(L$3),GESTEP(L$3,1)),L3*'2) Indicadores económicos'!U$3/'2) Indicadores económicos'!O$3,0)","v":0},null,null,null,null,null,{"$f":"IF(AND(ISNUMBER(S$3),GESTEP(S$3,1)),S3*'2) Indicadores económicos'!U$3/'2) Indicadores económicos'!O$3,0)","v":0}]
[null,null,null,null,"Nº de personas beneficiadas:\nNº de entidades beneficiadas:",null,null,null,null,null,null,"Nº depersonas beneficiadas:                                       Nº de entidades beneficiadas:",null,null,null,null,null,null,"Nº de personas beneficiadas:                              Nº de entidades beneficiadas:"]
[null,null,"Inversiones e incentivos al voluntariado",null,null,null,null,{"$f":"IF(AND(ISNUMBER(E$5),GESTEP(E$5,1)),E5*'2) Indicadores económicos'!J$3/'2) Indicadores económicos'!E$3,0)","v":0},null,null,null,null,null,null,null,{"$f":"IF(AND(ISNUMBER(L$5),GESTEP(L$5,1)),L5*'2) Indicadores económicos'!U$3/'2) Indicadores económicos'!O$3,0)","v":0},null,null,null,null,null,{"$f":"IF(AND(ISNUMBER(S$5),GESTEP(S$5,1)),S5*'2) Indicadores económicos'!U$3/'2) Indicadores económicos'!O$3,0)","v":0}]
[null,null,null,null,"Nº de personas beneficiadas:                  Nº de entidades beneficiadas:",null,null,null,null,null,null,"Nº depersonas beneficiadas:                         Nº de entidades beneficiadas:",null,null,null,null,null,null,"Nº de personas beneficiadas:                    Nº de entidades beneficiadas:"]
[null,null,"Inversiones en cultura / proyectos culturales y/o artísticos",null,null,null,null,{"$f":"IF(AND(ISNUMBER(E$7),GESTEP(E$7,1)),E7*'2) Indicadores económicos'!J$3/'2) Indicadores económicos'!E$3,0)","v":0},null,null,null,null,null,null,null,{"$f":"IF(AND(ISNUMBER(L$7),GESTEP(L$7,1)),L7*'2) Indicadores económicos'!U$3/'2) Indicadores económicos'!O$3,0)","v":0},null,null,null,null,null,{"$f":"IF(AND(ISNUMBER(S$7),GESTEP(S$7,1)),S7*'2) Indicadores económicos'!U$3/'2) Indicadores económicos'!O$3,0)","v":0}]
[null,null,null,null,"Nº de personas beneficiadas:                             Nº de entidades beneficiadas:",null,null,null,null,null,null,"Nº depersonas beneficiadas:                                       Nº de entidades beneficiadas:",null,null,null,null,null,null,"Nº de personas beneficiadas:                                 Nº de entidades beneficiadas:"]
[null,null,"Inversiones en educación / alfabetización",null,null,null,null,{"$f":"IF(AND(ISNUMBER(E$9),GESTEP(E$9,1)),E9*'2) Indicadores económicos'!J$3/'2) Indicadores económicos'!E$3,0)","v":0},null,null,null,null,null,null,null,{"$f":"IF(AND(ISNUMBER(L$9),GESTEP(L$9,1)),L9*'2) Indicadores económicos'!U$3/'2) Indicadores económicos'!O$3,0)","v":0},null,null,null,null,null,{"$f":"IF(AND(ISNUMBER(S$9),GESTEP(S$9,1)),S9*'2) Indicadores económicos'!U$3/'2) Indicadores económicos'!O$3,0)","v":0}]
[null,null,null,null,"Nº de personas beneficiadas:                              Nº de entidades beneficiadas:",null,null,null,null,null,null,"Nº depersonas beneficiadas:                                        Nº de entidades beneficiadas:",null,null,null,null,null,null,"Nº de personas beneficiadas:                                       Nº de entidades beneficiadas:"]
[null,null,"Otros",null,null,null,null,{"$f":"IF(AND(ISNUMBER(E$11),GESTEP(E$11,1)),E11*'2) Indicadores económicos'!J$3/'2) Indicadores económicos'!E$3,0)","v":0},null,null,null,null,null,null,null,{"$f":"IF(AND(ISNUMBER(L$11),GESTEP(L$11,1)),L11*'2) Indicadores económicos'!U$3/'2) Indicadores económicos'!O$3,0)","v":0},null,null,null,null,null,{"$f":"IF(AND(ISNUMBER(S$11),GESTEP(S$11,1)),S11*'2) Indicadores económicos'!U$3/'2) Indicadores económicos'!O$3,0)","v":0}]
[null,null,null,null,"Nº de personas beneficiadas:                               Nº de entidades beneficiadas:",null,null,null,null,null,null,"Nº depersonas beneficiadas:                                       Nº de entidades beneficiadas:",null,null,null,null,null,null,"Nº de personas beneficiadas:                                     Nº de entidades beneficiadas:"]
[null,null,"TOTAL DE LAS INVERSIONES SOCIALES EXTERNAS",null,{"$f":"E11+E9+E7+E5+E3","v":0},null,null,{"$f":"H11+H9+H7+H5+H3","v":0},null,null,null,{"$f":"L11+L9+L7+L5+L3","v":0},null,null,null,{"$f":"P11+P9+P7+P5+P3","v":0},null,null,{"$f":"S11+S9+S7+S5+S3","v":0},null,null,{"$f":"V11+V9+V7+V5+V3","v":0}]

{"sheet":"5) Indicadores de recursos hum.","index":4,"n_rows":21,"n_cols":20,"rows_kept":21,"cut":false,"hidden":false,"merged":[[2,3,2,4],[2,6,2,7],[2,8,2,9],[2,11,2,12],[2,14,2,16],[2,19,2,23],[0,2,1,2],[0,3,0,10],[0,11,0,18],[0,19,1,23],[1,3,1,4],[1,6,1,7],[1,8,1,9],[1,11,1,12],[1,14,1,16],[4,3,4,4],[4,6,4,7],[4,8,4,9],[4,11,4,12],[4,14,4,16],[4,19,4,23],[3,3,3,4],[3,6,3,7],[3,8,3,9],[3,11,3,12],[3,14,3,16],[3,19,3,23],[6,3,6,4],[6,6,6,7],[6,8,6,9],[6,11,6,12],[6,14,6,16],[6,19,6,23],[5,3,5,4],[5,6,5,7],[5,8,5,9],[5,11,5,12],[5,14,5,16],[5,19,5,23],[8,3,8,4],[8,6,8,7],[8,8,8,9],[8,11,8,12],[8,14,8,16],[8,19,8,23],[7,3,7,4],[7,6,7,7],[7,8,7,9],[7,11,7,12],[7,14,7,16],[7,19,7,23],[10,3,10,4],[10,6,10,7],[10,8,10,9],[10,11,10,12],[10,14,10,16],[10,19,10,23],[9,3,9,4],[9,6,9,7],[9,8,9,9],[9,11,9,12],[9,14,9,16],[9,19,9,23],[13,19,13,23],[14,3,14,4],[14,6,14,7],[14,8,14,9],[14,11,14,12],[14,14,14,16],[14,19,14,23],[11,13,12,13],[11,14,12,16],[11,17,12,17],[11,18,12,18],[11,19,12,23],[13,3,13,4],[13,6,13,7],[13,8,13,9],[13,11,13,12],[13,14,13,16],[11,3,12,4],[11,5,12,5],[11,6,12,7],[11,8,12,9],[11,10,12,10],[11,11,12,12],[16,3,16,4],[16,6,16,7],[16,8,16,9],[16,11,16,12],[16,14,16,16],[16,19,16,23],[15,3,15,4],[15,6,15,7],[15,8,15,9],[15,11,15,12],[15,14,15,16],[15,19,15,23],[18,3,18,4],[18,6,18,7],[18,8,18,9],[18,11,18,12],[18,14,18,16],[18,19,18,23],[17,6,17,7],[17,8,17,9],[17,11,17,12],[17,14,17,16],[17,19,17,23],[20,3,20,4],[20,6,20,7],[20,8,20,9],[20,11,20,12],[20,14,20,16],[20,19,20,23],[19,3,19,4],[19,6,19,7],[19,8,19,9],[19,11,19,12],[19,14,19,16],[19,19,19,23]]}
[null,null,"5)  INDICADORES DE RECURSOS HUMANOS","Ejercicio anterior",null,null,null,null,null,null,null,"Ejercicio actual",null,null,null,null,null,null,null,"Mejora proyectada"]
[null,null,null,"Empresarios/ Socios",null,"%","Empleados",null,"%",null,"Nº Total","EmpresariosSocios",null,"%","Empleados",null,null,"%","Nº Total"]
[null,null,"Nº de personas que trabajan en la empresa (a 31/12)",null,null,{"$f":"IF(AND(ISNUMBER(D3),GESTEP(D3,1)),D3*100/K3,0)","v":0},null,null,{"$f":"IF(AND(ISNUMBER(G3),GESTEP(G3,1)),G3*100/K3,0)","v":0},null,{"$f":"G3+D3","v":0},null,null,{"$f":"IF(AND(ISNUMBER(L3),GESTEP(L3,1)),L3*100/S3,0)","v":0},null,null,null,{"$f":"IF(AND(ISNUMBER(O3),GESTEP(O3,1)),O3*100/S3,0)","v":0},{"$f":"O3+L3","v":0}]
[null,null,"Nº de admisiones / contrataciones en el período",null,null,{"$f":"IF(AND(ISNUMBER(D4),GESTEP(D4,1)),D4*100/K4,0)","v":0},null,null,{"$f":"IF(AND(ISNUMBER(G4),GESTEP(G4,1)),G4*100/K4,0)","v":0},null,{"$f":"G4+D4","v":0},null,null,{"$f":"IF(AND(ISNUMBER(L4),GESTEP(L4,1)),L4*100/S4,0)","v":0},null,null,null,{"$f":"IF(AND(ISNUMBER(O4),GESTEP(O4,1)),O4*100/S4,0)","v":0},{"$f":"O4+L4","v":0},"[ ] No\n[ ] Sí, especificar:"]
[null,null,"Nº de despidos / salidas en el período",null,null,0,null,null,0,null,0,null,null,0,null,null,null,0,0,"[ ] No\n[ ] Sí, especificar:"]
[null,null,"Nº de litigios por causas\nlaborales",null,null,0,null,null,0,null,0,null,null,0,null,null,null,0,0,"[ ] No\n[ ] Sí, especificar:"]
[null,null,"Nº de personas beneficiadas con el primer empleo",null,null,{"$f":"IF(AND(ISNUMBER(D7),GESTEP(D7,1)),D7*100/K7,0)","v":0},null,null,{"$f":"IF(AND(ISNUMBER(G7),GESTEP(G7,1)),G7*100/K7,0)","v":0},null,0,null,null,{"$f":"IF(AND(ISNUMBER(L7),GESTEP(L7,1)),L7*100/S7,0)","v":0},null,null,null,0,0,"[ ] No\n[ ] Sí, especificar:"]
[null,null,"N° de asalariados fijos",null,null,{"$f":"IF(AND(ISNUMBER(D8),GESTEP(D8,1)),D8*100/K8,0)","v":0},null,null,{"$f":"IF(AND(ISNUMBER(G8),GESTEP(G8,1)),G8*100/K8,0)","v":0},null,0,null,null,{"$f":"IF(AND(ISNUMBER(L8),GESTEP(L8,1)),L8*100/S8,0)","v":0},null,null,null,0,0,"[ ] No\n[ ] Sí, especificar:"]
[null,null,"N° de trabajadores temporales",null,null,0,null,null,0,null,0,null,null,0,null,null,null,0,0,"[ ] No\n[ ] Sí, especificar:"]
[null,null,"Nº de becarios o trabajadores en prácticas durante el período",null,null,0,null,null,0,null,0,null,null,0,null,null,null,0,0,"[ ] No\n[ ] Sí, especificar:"]
[null,null,"Nº de personas con grado de\nparentesco con empresario / socios",null,null,{"$f":"IF(AND(ISNUMBER(D11),GESTEP(D11,1)),D11*100/K11,0)","v":0},null,null,0,null,0,null,null,{"$f":"IF(AND(ISNUMBER(L11),GESTEP(L11,1)),L11*100/S11,0)","v":0},null,null,null,0,0,"[ ] No\n[ ] Sí, especificar:"]
[null,null,"Nivel de escolaridad:",null,null,{"$f":"IF(AND(ISNUMBER(D12),GESTEP(D12,1)),D12*100/K12,0)","v":0},null,null,0,null,0,null,null,{"$f":"IF(AND(ISNUMBER(L12),GESTEP(L12,1)),L12*100/S12,0)","v":0},null,null,null,0,0,"[ ] No\n[ ] Sí, especificar:"]
[null,null,"Elemental"]
[null,null,"Media",null,null,0,null,null,{"$f":"IF(AND(ISNUMBER(G14),GESTEP(G14,1)),G14*100/K14,0)","v":0},null,0,null,null,0,null,null,null,0,0,"[ ] No\n[ ] Sí, especificar:"]
[null,null,"Superior",null,null,0,null,null,0,null,0,null,null,0,null,null,null,0,0,"[ ] No\n[ ] Sí, especificar:"]
[null,null,"Nº de personas mayores de\n50 años",null,null,0,null,null,0,null,0,null,null,0,null,null,null,0,0,"[ ] No\n[ ] Sí, especificar:"]
[null,null,"Nº de mujeres",null,null,0,null,null,0,null,0,null,null,0,null,null,null,0,0,"[ ] No\n[ ] Sí, especificar:"]
[null,null,"Nº de hombres",null,null,0,null,null,0,null,0,null,null,0,null,null,null,0,0,"[ ] No aplica\n[ ] Sí, especificar:"]
[null,null,"Nº de portadores de discapacidades",null,null,0,null,null,0,null,0,null,null,0,null,null,null,0,0,"[ ] No\n[ ] Sí, especificar:"]
[null,null,"Otras minorías (pueblos originarios, otros, especificar)",null,null,0,null,null,0,null,0,null,null,0,null,null,null,0,0,"[ ] No\n[ ] Sí, especificar:"]
[null,null,"Nº de personas que realizan trabajo voluntario en la comunidad",null,null,0,null,null,0,null,0,null,null,0,null,null,null,0,0,"[ ] No\n[ ] Sí, especificar:"]

{"sheet":"6) Indicadores de políticas","index":5,"n_rows":9,"n_cols":17,"rows_kept":9,"cut":false,"hidden":false,"merged":[[0,2,0,5],[0,6,0,15],[0,16,0,23],[1,2,1,5],[1,6,1,15],[1,16,1,23],[2,2,2,5],[2,6,2,15],[2,16,2,23],[3,2,3,5],[3,6,3,15],[3,16,3,23],[4,2,4,5],[4,6,4,15],[4,16,4,23],[5,2,5,5],[5,6,5,15],[5,16,5,23],[8,2,8,5],[8,6,8,15],[8,16,8,23],[6,2,6,5],[6,6,6,15],[6,16,6,23],[7,2,7,5],[7,6,7,15],[7,16,7,23]]}
[null,null,"6)  INDICADORES DE POLÍTICAS DE EMPLEO",null,null,null,"Ejercicio actual",null,null,null,null,null,null,null,null,null,"Mejora proyectada"]
[null,null,"Relación entre la mayor y la menor remuneración en la empresa",null,null,null,null,null,null,null,null,null,null,null,null,null,"[ ] No\n[ ] Sí, especificar:"]
[null,null,"Número total de accidentes de trabajo",null,null,null,null,null,null,null,null,null,null,null,null,null,"[ ] No, no aplica\n[ ] Sí, especificar:"]
[null,null,"¿Participan los empleados en la solución\nde problemas y/o en la búsqueda de soluciones?",null,null,null,"[ ] No\n[ ] Sí, eventualmente\n[ ] Sí, periódicamente",null,null,null,null,null,null,null,null,null,"[ ] No\n[ ] Sí, eventualmente\n[ ] Sí, periódicamente"]
[null,null,"¿Existen medidas concretas en relación a la seguridad, a la salud y para garantizar un buen ambiente de trabajo en la empresa?",null,null,null,"[ ] No\n[ ] Sí, proporcionando equipamientos\n[ ] Sí, realizando campañas, capacitaciones u otros",null,null,null,null,null,null,null,null,null,"[ ] No\n[ ] Sí, proporcionando equipamientos\n[ ] Sí, realizando campañas, capacitaciones u otros"]
[null,null,"¿Estimula la empresa la enseñanza elemental, media y superior de los empleados?",null,null,null,"[ ] No\n[ ] Sí, para los socios\n[ ] Sí, para todos",null,null,null,null,null,null,null,null,null,"[ ] No\n[ ] Sí, para los socios\n[ ] Sí, para todos"]
[null,null,"¿Estimula la empresa la capacitación específica (oficios, idiomas, cursos de formación u otros, relacionados o no con la actividad de la empresa)?",null,null,null,"[ ] No\n[ ] Sí, para los socios\n[ ] Sí, para todos",null,null,null,null,null,null,null,null,null,"[ ] No\n[ ] Sí, para los socios\n[ ] Sí, para todos"]
[null,null,"¿Adopta la empresa como práctica seleccionar/contratar a personas en las comunidades próximas?",null,null,null,"[ ] No\n[ ] Sí, hasta el 25%\n[ ] Sí, de 26% a 50%                                                         [ ] Sí, de 51%a 75%                                                          [ ] Sí, más del 75%",null,null,null,null,null,null,null,null,null,"[ ] No\n[ ] Sí, hasta el 25%\n[ ] Sí, de 26% a 50%                                                         [ ] Sí, de 51% a 75%                                                         [ ] Sí, más del 75%"]
[null,null,"¿Adopta la empresa una política regular de participación en los resultados?",null,null,null,"[ ] No\n[ ] Sí, para algunas personas\n[ ] Sí, para todos",null,null,null,null,null,null,null,null,null,"[ ] No\n[ ] Sí, para algunas personas\n[ ] Sí, para todos"]

{"sheet":"7) Indicadores ambientales","index":6,"n_rows":11,"n_cols":17,"rows_kept":11,"cut":false,"hidden":false,"merged":[[0,2,0,5],[0,6,0,15],[0,16,0,23],[1,2,1,5],[1,6,1,15],[1,16,1,23],[2,2,2,5],[2,6,2,15],[2,16,2,23],[3,2,3,5],[3,6,3,15],[3,16,3,23],[4,2,4,5],[4,6,4,15],[4,16,4,23],[5,2,5,5],[5,6,5,15],[5,16,5,23],[6,2,6,5],[6,6,6,15],[6,16,6,23],[7,2,7,5],[7,6,7,15],[7,16,7,23],[10,2,10,5],[10,6,10,15],[10,16,10,23],[8,2,8,5],[8,6,8,15],[8,16,8,23],[9,2,9,5],[9,6,9,15],[9,16,9,23]]}
[null,null,"7)  INDICADORES AMBIENTALES",null,null,null,"Ejercicio actual",null,null,null,null,null,null,null,null,null,"Mejora proyectada"]
[null,null,"¿Adopta políticas de reutilización de materiales (papel, embalajes, cartuchos de impresora, etc.)?",null,null,null,"[ ] No\n[ ] Sí, especificar:",null,null,null,null,null,null,null,null,null,"[ ] No\n[ ] Sí, especificar:"]
[null,null,"¿Adopta políticas de reciclaje?",null,null,null,"[ ] No\n[ ] Sí, especificar:",null,null,null,null,null,null,null,null,null,"[ ] No\n[ ] Sí, especificar:"]
[null,null,"¿Adopta alguna medida de reducción de consumo de energía?",null,null,null,"[ ] No\n[ ] Sí, especificar:",null,null,null,null,null,null,null,null,null,"[ ] No\n[ ] Sí, especificar:"]
[null,null,"¿Adopta alguna medida de reducción de consumo de agua?",null,null,null,"[ ] No\n[ ] Sí, especificar:",null,null,null,null,null,null,null,null,null,"[ ] No\n[ ] Sí, especificar:"]
[null,null,"¿Adopta alguna medida para reducir la contaminación (acústica, olfativa, del suelo, del aire, del agua, residuos)?",null,null,null,"[ ] No\n[ ] Noaplica\n[ ] Sí, especificar:",null,null,null,null,null,null,null,null,null,"Si aplica:                                                                          [ ] No\n[ ] Sí, especificar:"]
[null,null,"¿Conoce / aplica las reglamentaciones vinculadas al medio ambiente?",null,null,null,"[ ] No\n[ ] Sí, conoceynoaplica actividad\n[ ] Sí, conoceyaplica",null,null,null,null,null,null,null,null,null,"Si aplica:                                                                          [ ] No\n[ ] Sí, especificar:"]
[null,null,"¿Ha sido sancionada por incumplimiento de las normas ambientales?",null,null,null,"[ ] No, nunca\n[ ] No, enesteejercicio                                                   [ ] Sí, N° desanciones: Especificar motivos:",null,null,null,null,null,null,null,null,null,"Si ha sido sancionado en el ejercicio actual:                                                                   [ ] No\n[ ] Sí, especificar:"]
[null,null,"¿Realiza inversiones en educación ambiental a sus empleados (capacitación, entrenamiento)?",null,null,null,"[ ] No\n[ ] Sí, N° de empleados: Valores invertidos:",null,null,null,null,null,null,null,null,null,"[ ] No\n[ ] Sí, N° de empleados: Valores invertidos:"]
[null,null,"¿Adopta alguna medida de tratamiento de residuos (sólidos, agua)?",null,null,null,"[ ] No\n[ ] No aplica\n[ ] Sí, especificar:",null,null,null,null,null,null,null,null,null,"Si aplica:                                                                          [ ] No\n[ ] Sí, especificar:"]
[null,null,"¿Adopta alguna medida de reducción de emisión de gases de efecto invernadero?",null,null,null,"[ ] No\n[ ] No aplica\n[ ] Sí, especificar:",null,null,null,null,null,null,null,null,null,"Si aplica:                                                                          [ ] No\n[ ] Sí, especificar:"]

{"sheet":"8) Otras informaciones","index":7,"n_rows":5,"n_cols":17,"rows_kept":5,"cut":false,"hidden":false,"merged":[[0,2,0,5],[0,6,0,15],[0,16,0,23],[1,2,1,5],[1,6,1,15],[1,16,1,23],[4,6,4,15],[4,16,4,23],[2,2,2,5],[2,6,2,15],[2,16,2,23],[3,2,3,5],[3,6,3,15],[3,16,3,23]]}
[null,null,"8)  OTRAS INFORMACIONES",null,null,null,"Ejercicio actual",null,null,null,null,null,null,null,null,null,"Mejora proyectada"]
[null,null,"¿Se asegura que el producto, en su cadena de valor, sea libre de trabajo de menores, forzoso o realizado bajo coacción, de acuerdo con la legislación vigente?",null,null,null,"[ ] No\n[ ] Sí, especificar:",null,null,null,null,null,null,null,null,null,"[ ] No\n[ ] Sí, especificar:"]
[null,null,"¿Toma medidas para prevenir incidentes de corrupción y/o soborno?",null,null,null,"[ ] No\n[ ] Sí, especificar:",null,null,null,null,null,null,null,null,null,"[ ] No\n[ ] Sí, especificar:"]
[null,null,"¿Adopta medidas de responsabilidad sobre el producto, de acuerdo con la legislación vigente?",null,null,null,"[ ] No\n[ ] Sí, especificar:",null,null,null,null,null,null,null,null,null,"[ ] No\n[ ] Sí, especificar:"]
[null,null,"Otros",null,null,null,"[ ] No\n[ ] Sí, especificar:",null,null,null,null,null,null,null,null,null,"[ ] No\n[ ] Sí, especificar:"]